fUST/lending_fUST_20250623
["ID","MTS","AMOUNT","RATE_DAILY","PERIOD"]
[367024753,1750620659249,-500.0,0.00026516,2]
[367024754,1750620659258,-1564.01417911,0.00026516,2]
[367024755,1750620659268,-200.0,0.00026542,2]
[367024756,1750620659277,-166.025028,0.00026543,7]
[367024757,1750620659287,-589.177194,0.00026543,7]
[367024758,1750620659296,-589.177194,0.00026543,7]
[367024759,1750620659306,-589.177194,0.00026543,7]
[367024760,1750620659316,-589.177194,0.00026543,7]
[367024761,1750620659325,-589.177194,0.00026543,7]
[367024762,1750620659334,-589.177194,0.00026543,7]
[367024763,1750620659345,-589.177194,0.00026543,7]
[367024764,1750620659354,-589.17718573,0.00026543,7]
[367024765,1750620659364,-225.442222,0.00026543,7]
[367024766,1750620659374,-225.442222,0.00026543,7]
[367024767,1750620659384,-225.442222,0.00026543,7]
[367024768,1750620659394,-225.442222,0.00026543,7]
[367024769,1750620659404,-225.442222,0.00026543,7]
[367024770,1750620659414,-225.442222,0.00026543,7]
[367024771,1750620659425,-225.442222,0.00026543,7]
[367024772,1750620659435,-225.442222,0.00026543,7]
[367024773,1750620659445,-225.442222,0.00026543,7]
[367024774,1750620659455,-169.302838,0.00026543,7]
[367024775,1750620659465,-169.302838,0.00026543,7]
[367024776,1750620659475,-225.442222,0.00026543,7]
[367024777,1750620659484,-169.302835,0.00026543,7]
[367024778,1750620659494,-225.442222,0.00026543,7]
[367024779,1750620659503,-225.442222,0.00026543,7]
[367024780,1750620659522,-225.442222,0.00026543,7]
[367024781,1750620659534,-225.442222,0.00026543,7]
[367024782,1750620659545,-225.442222,0.00026543,7]
[367024783,1750620659555,-225.442222,0.00026543,7]
[367024784,1750620659565,-225.442222,0.00026543,7]
[367024785,1750620659575,-225.442223,0.00026543,7]
[367024786,1750620659586,-151.0,0.00026543,7]
[367024787,1750620659596,-151.0,0.00026543,7]
[367024788,1750620659607,-151.0,0.00026543,7]
[367024789,1750620659617,-151.0,0.00026543,7]
[367024790,1750620659627,-151.0,0.00026543,7]
[367024791,1750620659638,-186.671999,0.00026543,7]
[367024792,1750620659648,-1585.854578,0.00026543,7]
[367024793,1750620659657,-1585.854578,0.00026543,7]
[367024794,1750620659667,-1585.854578,0.00026543,7]
[367024795,1750620659678,-1585.854578,0.00026543,7]
[367024796,1750620659688,-1585.854578,0.00026543,7]
[367024797,1750620659698,-1585.854578,0.00026543,7]
[367024798,1750620659709,-1585.854578,0.00026543,7]
[367024799,1750620659720,-1585.854578,0.00026543,7]
[367024800,1750620659731,-1585.854578,0.00026543,7]
[367024801,1750620659741,-1585.854578,0.00026543,7]
[367024802,1750620659751,-1585.854578,0.00026543,7]
[367024803,1750620659762,-1585.854578,0.00026543,7]
[367024804,1750620659772,-1585.854578,0.00026543,7]
[367024805,1750620659782,-1585.854578,0.00026543,7]
[367024806,1750620659792,-1585.854578,0.00026543,7]
[367024807,1750620659802,-1585.854569,0.00026543,7]
[367024808,1750620659814,-1597.439116,0.00026543,7]
[367024809,1750620659824,-1597.439116,0.00026543,7]
[367024810,1750620659835,-1597.439116,0.00026543,7]
[367024811,1750620659845,-1597.439116,0.00026543,7]
[367024812,1750620659855,-1597.439116,0.00026543,7]
[367024813,1750620659864,-1597.439116,0.00026543,7]
[367024814,1750620659875,-1597.439116,0.00026543,7]
[367024815,1750620659885,-1597.439116,0.00026543,7]
[367024816,1750620659895,-1597.439116,0.00026543,7]
[367024817,1750620659905,-1597.439116,0.00026543,7]
[367024818,1750620659914,-1597.439116,0.00026543,7]
[367024819,1750620659924,-1597.439116,0.00026543,7]
[367024820,1750620659934,-1597.439116,0.00026543,7]
[367024821,1750620659943,-1597.439116,0.00026543,7]
[367024822,1750620659953,-1597.439116,0.00026543,7]
[367024823,1750620659963,-1597.43911,0.00026543,7]
[367024824,1750620659973,-429.697106,0.00026543,7]
[367024825,1750620659983,-429.697106,0.00026543,7]
[367024826,1750620659992,-429.697106,0.00026543,7]
[367024827,1750620660002,-429.697106,0.00026543,7]
[367024828,1750620660012,-429.697106,0.00026543,7]
[367024829,1750620660023,-429.697106,0.00026543,7]
[367024830,1750620660032,-429.697106,0.00026543,7]
[367024831,1750620660043,-429.697106,0.00026543,7]
[367024832,1750620660053,-429.697106,0.00026543,7]
[367024833,1750620660064,-429.697106,0.00026543,7]
[367024834,1750620660074,-429.697106,0.00026543,7]
[367024835,1750620660084,-429.697106,0.00026543,7]
[367024836,1750620660094,-429.697106,0.00026543,7]
[367024837,1750620660104,-429.697106,0.00026543,7]
[367024838,1750620660114,-429.697106,0.00026543,7]
[367024839,1750620660124,-429.697106,0.00026543,7]
[367024840,1750620660134,-429.697106,0.00026543,7]
[367024841,1750620660143,-429.697106,0.00026543,7]
[367024842,1750620660153,-429.697106,0.00026543,7]
[367024843,1750620660167,-429.697105,0.00026543,7]
[367024844,1750620660178,-151.0,0.00026543,7]
[367024845,1750620660187,-151.0,0.00026543,7]
[367024846,1750620660197,-151.0,0.00026543,7]
[367024847,1750620660208,-151.0,0.00026543,7]
[367024848,1750620660219,-151.0,0.00026543,7]
[367024849,1750620660229,-151.0,0.00026543,7]
[367024850,1750620660239,-151.0,0.00026543,7]
[367024851,1750620660250,-151.0,0.00026543,7]
[367024852,1750620660260,-151.0,0.00026543,7]
[367024853,1750620660270,-151.0,0.00026543,7]
[367024854,1750620660279,-151.0,0.00026543,7]
[367024855,1750620660290,-200.26885,0.00026543,7]
[367024856,1750620660300,-312.48292,0.00026543,7]
[367024857,1750620660309,-312.48292,0.00026543,7]
[367024858,1750620660319,-312.48292,0.00026543,7]
[367024859,1750620660329,-312.48292,0.00026543,7]
[367024860,1750620660340,-312.48292,0.00026543,7]
[367024861,1750620660350,-312.48292,0.00026543,7]
[367024862,1750620660360,-312.48292,0.00026543,7]
[367024863,1750620660370,-312.48292,0.00026543,7]
[367024864,1750620660380,-312.48292,0.00026543,7]
[367024865,1750620660390,-312.48292,0.00026543,7]
[367024866,1750620660400,-312.48292,0.00026543,7]
[367024867,1750620660410,-312.48292,0.00026543,7]
[367024868,1750620660420,-312.48292,0.00026543,7]
[367024869,1750620660430,-312.48292,0.00026543,7]
[367024870,1750620660439,-312.48292,0.00026543,7]
[367024871,1750620660449,-312.482929,0.00026543,7]
[367024872,1750620660459,-252.958036,0.00026543,7]
[367024873,1750620660468,-252.958036,0.00026543,7]
[367024874,1750620660478,-252.958036,0.00026543,7]
[367024875,1750620660488,-252.958036,0.00026543,7]
[367024876,1750620660498,-252.958036,0.00026543,7]
[367024877,1750620660507,-252.958036,0.00026543,7]
[367024878,1750620660517,-252.958036,0.00026543,7]
[367024879,1750620660527,-252.958036,0.00026543,7]
[367024880,1750620660536,-252.958036,0.00026543,7]
[367024881,1750620660546,-252.958036,0.00026543,7]
[367024882,1750620660556,-252.958036,0.00026543,7]
[367024883,1750620660566,-252.958036,0.00026543,7]
[367024884,1750620660576,-252.958036,0.00026543,7]
[367024885,1750620660586,-252.958036,0.00026543,7]
[367024886,1750620660596,-252.958036,0.00026543,7]
[367024887,1750620660606,-252.958035,0.00026543,7]
[367024888,1750620660616,-1763.07536,0.00026543,7]
[367024889,1750620660625,-1763.07536,0.00026543,7]
[367024890,1750620660635,-1763.07536,0.00026543,7]
[367024891,1750620660645,-1763.07536,0.00026543,7]
[367024892,1750620660656,-1763.07536,0.00026543,7]
[367024893,1750620660666,-1763.07536,0.00026543,7]
[367024894,1750620660676,-1763.07536,0.00026543,7]
[367024895,1750620660686,-1763.07536,0.00026543,7]
[367024896,1750620660696,-1763.07536,0.00026543,7]
[367024897,1750620660706,-1763.07536,0.00026543,7]
[367024898,1750620660716,-1763.07536,0.00026543,7]
[367024899,1750620660726,-1763.07536,0.00026543,7]
[367024900,1750620660736,-1763.07536,0.00026543,7]
[367024901,1750620660746,-1763.07536,0.00026543,7]
[367024902,1750620660756,-1763.07536,0.00026543,7]
[367024903,1750620660766,-1763.075359,0.00026543,7]
[367024904,1750620660775,-151.0,0.00026543,7]
[367024905,1750620660785,-493.69557,0.00026543,7]
[367024906,1750620660795,-493.69557,0.00026543,7]
[367024907,1750620660804,-227.819992,0.00026543,7]
[367024908,1750620660814,-227.819992,0.00026543,7]
[367024909,1750620660824,-1047.165183,0.00026543,7]
[367024910,1750620660833,-1047.165183,0.00026543,7]
[367024911,1750620660843,-151.0,0.00026543,7]
[367024912,1750620660853,-181.766079,0.00026543,7]
[367024913,1750620660862,-181.766079,0.00026543,7]
[367024914,1750620660872,-262.174,0.00026545,7]
[367024915,1750620660882,-262.174,0.00026545,7]
[367024916,1750620660892,-262.174,0.00026545,7]
[367024917,1750620660902,-262.174,0.00026545,7]
[367024918,1750620660912,-262.174,0.00026545,7]
[367024919,1750620660922,-262.174,0.00026545,7]
[367024920,1750620660932,-262.174,0.00026545,7]
[367024921,1750620660942,-262.174,0.00026545,7]
[367024922,1750620660953,-262.174,0.00026545,7]
[367024923,1750620660963,-262.174,0.00026545,7]
[367024924,1750620660972,-262.174,0.00026545,7]
[367024925,1750620660982,-262.174,0.00026545,7]
[367024926,1750620660992,-262.174,0.00026545,7]
[367024927,1750620661002,-262.174,0.00026545,7]
[367024928,1750620661011,-262.174,0.00026545,7]
[367024929,1750620661021,-262.174,0.00026545,7]
[367024930,1750620661031,-262.174,0.00026545,7]
[367024931,1750620661040,-262.174,0.00026545,7]
[367024932,1750620661050,-354.898883,0.00026545,7]
[367024933,1750620661059,-354.898883,0.00026545,7]
[367024934,1750620661069,-354.898883,0.00026545,7]
[367024935,1750620661079,-354.898883,0.00026545,7]
[367024936,1750620661088,-354.898883,0.00026545,7]
[367024937,1750620661099,-354.898883,0.00026545,7]
[367024938,1750620661109,-354.898883,0.00026545,7]
[367024939,1750620661119,-354.898883,0.00026545,7]
[367024940,1750620661128,-354.898883,0.00026545,7]
[367024941,1750620661138,-354.898883,0.00026545,7]
[367024942,1750620661148,-354.898883,0.00026545,7]
[367024943,1750620661159,-354.898883,0.00026545,7]
[367024944,1750620661173,-354.898883,0.00026545,7]
[367024945,1750620661182,-354.898883,0.00026545,7]
[367024946,1750620661192,-354.898883,0.00026545,7]
[367024947,1750620661202,-354.898883,0.00026545,7]
[367024948,1750620661212,-354.898883,0.00026545,7]
[367024949,1750620661222,-354.898886,0.00026545,7]
[367024950,1750620661232,-1999.39741,0.00026545,7]
[367024951,1750620661243,-1999.39741,0.00026545,7]
[367024952,1750620661253,-1999.39741,0.00026545,7]
[367024953,1750620661262,-485.76378945,0.00026545,7]
[367024954,1750620662190,-160.0,0.00022632,2]
[367024955,1750620662200,-299.25987139,0.000239,10]
[367024956,1750620691087,2000.0,0.00023274,120]
[367024957,1750620954058,801.83354131,0.00025,30]
[367024958,1750621125273,159.77149774,0.000201,2]
[367024959,1750621373837,453.11478686,0.000201,2]
[367024960,1750621504664,5000.0,0.000201,2]
[367024961,1750621519738,4546.88521314,0.000201,2]
[367024962,1750621597319,1341.3101417,0.000189,2]
[367024963,1750621628215,-155.70497761,0.00020369,2]
[367024964,1750621628235,-95.8010687,0.00021217,2]
[367024965,1750621638161,-141.0862463,0.00021217,2]
[367024966,1750621638183,-300.0,0.00021383,2]
[367024967,1750621638205,-300.0,0.00021384,2]
[367024968,1750621638228,-300.0,0.00021384,2]
[367024969,1750621638249,-946.38652071,0.00021384,2]
[367024971,1750621642088,-253.61347929,0.00021384,2]
[367024972,1750621642111,-300.0,0.00021384,2]
[367024973,1750621642132,-270.676087,0.00021385,2]
[367024974,1750621642153,-8711.44047598,0.00021385,2]
[367024975,1750621643258,385.997045,0.00013699,2]
[367024976,1750621652623,991.00209176,0.00019285,2]
[367024979,1750621757112,-385.997045,0.00020187,2]
[367024980,1750621757134,-1412.86522812,0.00020187,2]
[367024981,1750621761581,-300.0,0.00021189,2]
[367024982,1750621761606,-500.0,0.0002119,2]
[367024983,1750621761629,-500.0,0.0002119,2]
[367024984,1750621761651,-651.45491145,0.0002119,2]
[367024985,1750621761675,-500.0,0.0002119,2]
[367024986,1750621761697,-500.0,0.0002119,2]
[367024987,1750621761722,-500.0,0.0002119,2]
[367024988,1750621761746,-500.0,0.0002119,2]
[367024989,1750621761770,-500.0,0.0002119,2]
[367024990,1750621761793,-641.55790508,0.0002119,2]
[367024991,1750621761817,-159.92653589,0.0002119,2]
[367024992,1750621761841,-500.0,0.0002119,2]
[367024993,1750621761863,-285.60991261,0.0002119,2]
[367024994,1750621761887,-500.0,0.0002119,2]
[367024995,1750621761910,-500.0,0.0002119,2]
[367024996,1750621761933,-500.0,0.0002119,2]
[367024997,1750621761954,-500.0,0.0002119,2]
[367024998,1750621761976,-11005.99115113,0.00021191,2]
[367024999,1750621769974,200.0,2.119e-05,2]
[367025000,1750621771242,661.5099395,0.00021191,120]
[367025002,1750621797174,258.9,2.121e-05,2]
[367025013,1750621831775,-188.40978128,0.00021091,2]
[367025014,1750621831785,-300.0,0.0002119,2]
[367025015,1750621831795,-300.0,0.0002119,2]
[367025016,1750621831804,-1200.0,0.0002119,2]
[367025017,1750621831816,-13894.00884887,0.00021191,2]
[367025018,1750621831826,-164.72290119,0.00021197,2]
[367025019,1750621831838,-23.68688009,0.00021197,2]
[367025020,1750621831849,-187.5798374,0.00021285,2]
[367025021,1750621831857,-188.40978128,0.00021304,2]
[367025022,1750621831868,-12.6557331,0.00021385,2]
[367025023,1750621831887,-569.96323162,0.00021385,2]
[367025024,1750621831897,-395.99180919,0.00021404,2]
[367025025,1750621831908,-655.34994311,0.00021404,2]
[367025026,1750621831918,-304.70588843,0.00021868,2]
[367025027,1750621831930,-606.84252089,0.00021868,2]
[367025028,1750621831942,-88.45159068,0.00021868,2]
[367025029,1750621831952,-246.02,0.00021899,2]
[367025030,1750621831961,-1688.0,0.00021915,2]
[367025031,1750621831970,-207.4,0.00021915,2]
[367025032,1750621831980,-500.0,0.00021917,2]
[367025033,1750621831989,-5888.0,0.00021929,2]
[367025034,1750621831999,-1750.456,0.0002197,2]
[367025035,1750621832009,-1815.222872,0.00022025,2]
[367025036,1750621832019,-1882.38611826,0.0002208,2]
[367025037,1750621832028,-255.74462247,0.00022135,2]
[367025038,1750621832037,-572.15126314,0.00022142,2]
[367025039,1750621832047,-552.68337931,0.00022465,2]
[367025040,1750621832057,-157.90852156,0.00022473,2]
[367025041,1750621832068,-151.3462781,0.00022564,2]
[367025042,1750621832078,-500.0,0.00022564,2]
[367025043,1750621832087,-500.0,0.00022564,2]
[367025044,1750621832099,-500.0,0.00022564,2]
[367025045,1750621832109,-500.0,0.00022564,2]
[367025046,1750621832118,-500.0,0.00022564,2]
[367025047,1750621832128,-500.0,0.00022564,2]
[367025048,1750621832137,-500.0,0.00022564,2]
[367025049,1750621832146,-500.0,0.00022564,2]
[367025050,1750621832156,-5000.0,0.00022564,2]
[367025051,1750621832165,-500.0,0.00022564,2]
[367025052,1750621832175,-500.0,0.00022564,2]
[367025053,1750621832184,-25000.0,0.00022564,2]
[367025054,1750621832194,-6865.42455935,0.00022572,2]
[367025055,1750621832203,-6520.20313,0.00022572,2]
[367025056,1750621832213,-500.0,0.00022573,2]
[367025057,1750621832222,-500.0,0.00022573,2]
[367025058,1750621832232,-500.0,0.00022573,2]
[367025059,1750621832241,-500.0,0.00022573,2]
[367025060,1750621832251,-171.19469755,0.00022573,2]
[367025061,1750621832261,-476.99208843,0.00022573,2]
[367025062,1750621832270,-450.11997304,0.00022573,2]
[367025066,1750621837674,-404.61754501,0.00021928,2]
[367025067,1750621837684,-49.88002696,0.00022573,2]
[367025068,1750621837693,-500.0,0.00022573,2]
[367025069,1750621837703,-500.0,0.00022573,2]
[367025070,1750621837711,-500.0,0.00022573,2]
[367025071,1750621837720,-190.10645576,0.00022573,2]
[367025072,1750621837730,-617.792,0.00022576,2]
[367025073,1750621837739,-500.0,0.00022589,2]
[367025074,1750621837748,-500.0,0.00022589,2]
[367025075,1750621837757,-500.0,0.00022589,2]
[367025076,1750621837766,-500.0,0.00022589,2]
[367025077,1750621837776,-500.0,0.00022589,2]
[367025078,1750621837785,-500.0,0.00022589,2]
[367025079,1750621837794,-238.17444015,0.00022772,2]
[367025080,1750621837803,-1489.8,0.000228,7]
[367025081,1750621837812,-262.0,0.00022803,2]
[367025082,1750621837824,-200.22507121,0.00022826,5]
[367025083,1750621837833,-500.0,0.0002285,2]
[367025084,1750621837842,-500.0,0.0002285,2]
[367025085,1750621837851,-628.34846934,0.00022886,2]
[367025086,1750621837860,-213.59462818,0.00022887,2]
[367025087,1750621837869,-160.0,0.00022887,2]
[367025088,1750621837878,-160.0,0.00022887,2]
[367025089,1750621837888,-160.0,0.00022887,2]
[367025090,1750621837896,-836.56272071,0.00022887,2]
[367025091,1750621837905,-160.0,0.0002289,2]
[367025092,1750621837914,-160.0,0.0002289,2]
[367025093,1750621837923,-160.0,0.0002289,2]
[367025094,1750621837932,-425.01221603,0.0002289,2]
[367025095,1750621837941,-12551.52821599,0.0002289,2]
[367025096,1750621837950,-230.14598372,0.0002289,2]
[367025097,1750621837959,-846.39664074,0.0002289,2]
[367025098,1750621837968,-160.0,0.00022891,2]
[367025099,1750621837977,-3863.33931997,0.000229,8]
[367025100,1750621837986,-5888.0,0.00022901,2]
[367025101,1750621837996,-330.14072335,0.00023,2]
[367025102,1750621838007,-262.0,0.00023032,2]
[367025103,1750621838016,-3863.33931976,0.00023038,8]
[367025104,1750621838027,-420.0,0.00023045,2]
[367025105,1750621838036,-420.0,0.00023045,2]
[367025106,1750621838045,-1000.0,0.00023121,2]
[367025107,1750621838054,-216.000034,0.00023121,2]
[367025108,1750621838063,-1000.0,0.00023121,2]
[367025109,1750621838074,-1000.0,0.00023121,2]
[367025110,1750621838083,-855.19936786,0.00023121,2]
[367025111,1750621838093,-1000.0,0.00023121,2]
[367025112,1750621838102,-151.0,0.00023122,5]
[367025113,1750621838111,-1000.0,0.00023137,2]
[367025114,1750621838120,-1000.0,0.00023137,2]
[367025115,1750621838130,-1000.0,0.00023137,2]
[367025116,1750621838139,-1000.0,0.00023137,2]
[367025117,1750621838148,-1000.0,0.00023137,2]
[367025118,1750621838158,-1000.0,0.00023137,2]
[367025119,1750621838167,-1680.0,0.00023155,2]
[367025120,1750621838176,-3863.33931976,0.00023176,8]
[367025121,1750621838186,-262.0,0.00023185,2]
[367025122,1750621838196,-420.0,0.00023252,2]
[367025123,1750621838206,-246.02,0.00023269,2]
[367025124,1750621838216,-250.0,0.0002327,2]
[367025125,1750621838225,-215.0738,0.00023284,2]
[367025126,1750621838235,-3863.33931976,0.00023314,9]
[367025127,1750621838246,-500.0,0.00023323,2]
[367025128,1750621838255,-500.0,0.00023362,2]
[367025129,1750621838267,-500.0,0.00023397,2]
[367025130,1750621838276,-625.92040111,0.00023398,2]
[367025131,1750621838286,-1000.0,0.00023398,2]
[367025132,1750621838295,-500.0,0.00023417,2]
[367025133,1750621838304,-3863.33931976,0.00023452,9]
[367025134,1750621838313,-151.0,0.00023464,5]
[367025135,1750621838323,-262.0,0.00023484,2]
[367025136,1750621838332,-500.0,0.00023509,2]
[367025137,1750621838342,-500.0,0.00023514,2]
[367025138,1750621838351,-500.0,0.00023543,2]
[367025139,1750621838361,-500.0,0.00023547,2]
[367025140,1750621838370,-470.28,0.0002358,3]
[367025141,1750621838381,-500.0,0.00023582,2]
[367025142,1750621838391,-3863.33931976,0.0002359,9]
[367025143,1750621838400,-500.0,0.00023605,2]
[367025144,1750621838411,-262.0,0.00023625,2]
[367025145,1750621838419,-500.0,0.00023627,2]
[367025146,1750621838429,-499.3,0.00023662,2]
[367025147,1750621838438,-500.0,0.00023668,2]
[367025148,1750621838447,-1500.0,0.00023668,2]
[367025149,1750621838456,-1000.0,0.00023668,2]
[367025150,1750621838467,-1500.0,0.00023668,2]
[367025151,1750621838476,-1216.92236027,0.00023685,2]
[367025152,1750621838486,-1188.93343796,0.00023685,2]
[367025153,1750621838496,-1500.0,0.00023685,2]
[367025154,1750621838506,-1500.0,0.00023685,2]
[367025155,1750621838516,-1384.01567669,0.00023685,2]
[367025156,1750621838527,-1500.0,0.00023685,2]
[367025157,1750621838536,-293.85068442,0.00023721,2]
[367025158,1750621838547,-3863.33931976,0.00023728,9]
[367025159,1750621838558,-500.0,0.00023762,2]
[367025160,1750621838570,-500.0,0.00023793,2]
[367025161,1750621838580,-1489.8,0.000238,7]
[367025162,1750621838590,-151.0,0.00023806,5]
[367025163,1750621838600,-500.0,0.00023807,2]
[367025164,1750621838610,-500.0,0.00023819,2]
[367025165,1750621838619,-500.0,0.00023822,2]
[367025166,1750621838629,-500.0,0.00023841,2]
[367025167,1750621838638,-691.71,0.00023856,3]
[367025168,1750621838647,-3863.33931976,0.00023866,10]
[367025169,1750621838657,-461.13,0.00023889,3]
[367025170,1750621838666,-230.57,0.00023889,3]
[367025171,1750621838675,-500.0,0.00023893,2]
[367025172,1750621838686,-5888.0,0.00023899,2]
[367025173,1750621838695,-500.0,0.00023937,2]
[367025174,1750621838705,-1500.0,0.00023946,2]
[367025175,1750621838714,-500.0,0.00023971,2]
[367025176,1750621838723,-500.0,0.00023987,2]
[367025177,1750621838733,-836.56272071,0.00024003,10]
[367025178,1750621838742,-524.02598587,0.00024003,10]
[367025179,1750621838752,-846.39664074,0.00024003,10]
[367025180,1750621838761,-213.59462818,0.00024003,10]
[367025181,1750621838770,-425.01221603,0.00024003,10]
[367025182,1750621838780,-3863.33931976,0.00024003,10]
[367025183,1750621838790,-160.0,0.00024003,10]
[367025184,1750621838799,-2701.55,0.000241,2]
[367025185,1750621838808,-160.0,0.00024107,10]
[367025186,1750621838819,-3863.33931976,0.00024141,10]
[367025187,1750621838829,-151.0,0.00024148,6]
[367025188,1750621838838,-500.0,0.00024216,2]
[367025189,1750621838847,-2000.0,0.00024216,2]
[367025190,1750621838857,-500.0,0.0002422,2]
[367025191,1750621838866,-1500.0,0.00024233,2]
[367025192,1750621838875,-1500.0,0.00024233,2]
[367025193,1750621838885,-1500.0,0.00024233,2]
[367025194,1750621838894,-3863.33931976,0.00024279,10]
[367025195,1750621838904,-991.00209176,0.00024285,2]
[367025196,1750621838914,-500.0,0.00024286,2]
[367025197,1750621838923,-500.0,0.00024336,2]
[367025198,1750621838934,-965.0,0.00024336,2]
[367025199,1750621838943,-2161.0,0.00024336,2]
[367025200,1750621838953,-654.0,0.00024336,2]
[367025201,1750621838963,-406.0,0.00024336,2]
[367025202,1750621838972,-406.0,0.00024336,2]
[367025203,1750621838984,-150.0,0.00024336,2]
[367025204,1750621838993,-150.0,0.00024336,2]
[367025205,1750621839003,-500.0,0.00024346,2]
[367025206,1750621839012,-500.0,0.00024403,2]
[367025207,1750621839022,-3863.33931976,0.00024417,11]
[367025208,1750621839034,-157.90852156,0.00024434,2]
[367025209,1750621839043,-262.0,0.00024437,2]
[367025210,1750621839053,-151.0,0.0002449,6]
[367025211,1750621839062,-1000.0,0.00024494,2]
[367025212,1750621839074,-596.3683009,0.00024499,3]
[367025213,1750621839083,-12500.0,0.00024499,3]
[367025214,1750621839092,-836.56272071,0.00024499,3]
[367025215,1750621839102,-846.39664074,0.00024499,3]
[367025216,1750621839111,-213.59462818,0.00024499,3]
[367025217,1750621839120,-425.01221603,0.00024499,3]
[367025218,1750621839130,-160.0,0.00024499,3]
[367025219,1750621839139,-160.0,0.000245,3]
[367025220,1750621839148,-160.0,0.000245,3]
[367025221,1750621839158,-3863.33931976,0.00024555,11]
[367025222,1750621839168,-409.312054,0.00024568,7]
[367025223,1750621839177,-409.312054,0.00024568,7]
[367025224,1750621839187,-503.87752,0.00024568,7]
[367025225,1750621839198,-503.87752,0.00024568,7]
[367025226,1750621839207,-151.0,0.00024568,7]
[367025227,1750621839216,-151.0,0.00024568,7]
[367025228,1750621839225,-922.27,0.0002459,3]
[367025229,1750621839235,-7007.89,0.000246,7]
[367025230,1750621839244,-160.0,0.000246,7]
[367025231,1750621839253,-836.56272071,0.000246,7]
[367025232,1750621839262,-846.39664074,0.000246,7]
[367025233,1750621839272,-213.59462818,0.000246,7]
[367025234,1750621839282,-425.01221603,0.000246,7]
[367025235,1750621839291,-160.0,0.000246,7]
[367025236,1750621839301,-246.02,0.00024639,2]
[367025237,1750621839310,-223.0315306,0.00024653,2]
[367025238,1750621839320,-200.0,0.00024658,15]
[367025239,1750621839329,-1000.0,0.00024658,2]
[367025240,1750621839338,-1000.0,0.00024658,2]
[367025241,1750621839347,-1000.0,0.00024658,2]
[367025242,1750621839357,-412.35632265,0.00024658,2]
[367025244,1750621839367,-1000.0,0.00024658,2]
[367025245,1750621839377,-311.97776256,0.00024659,2]
[367025246,1750621839386,-500.0,0.0002466,2]
[367025247,1750621839395,-409.312054,0.0002468,7]
[367025248,1750621839404,-409.312054,0.0002468,7]
[367025249,1750621839413,-503.87752,0.0002468,7]
[367025250,1750621839423,-503.87752,0.0002468,7]
[367025251,1750621839432,-151.0,0.0002468,7]
[367025252,1750621839441,-151.0,0.0002468,7]
[367025253,1750621839451,-500.0,0.00024686,2]
[367025256,1750621839460,-3863.33931976,0.00024693,11]
[367025257,1750621839470,-500.0,0.00024707,2]
[367025258,1750621839480,-500.0,0.00024746,2]
[367025259,1750621839489,-500.0,0.00024797,2]
[367025260,1750621839499,-1489.8,0.000248,7]
[367025261,1750621839510,-9046.38571465,0.000248,2]
[367025262,1750621839520,-185.27609533,0.000248,4]
[367025263,1750621839531,-185.27609533,0.000248,4]
[367025264,1750621839542,-185.27609533,0.000248,4]
[367025265,1750621839557,-185.27609533,0.000248,4]
[367025266,1750621839571,-185.27609533,0.000248,4]
[367025267,1750621839581,-185.27609533,0.000248,4]
[367025268,1750621839591,-185.27609533,0.000248,4]
[367025269,1750621839604,-185.27609533,0.000248,4]
[367025270,1750621839614,-185.27609533,0.000248,4]
[367025271,1750621839624,-185.27609533,0.000248,4]
[367025272,1750621839633,-185.27609533,0.000248,4]